[Event "Titled Tuesday Blitz March 07 Late 2023"]
[White "Jimenez Almeida, Luis David"]
[Black "Miszler, Levente"]
[WhiteFideId "22242244"]
[BlackFideId "763276"]
[WhiteElo "2245"]
[BlackElo "2176"]
[Result "1-0"]
[Round "03"]
[TimeControl "180+2"]
[Date "2023.03.07"]
[WhiteClock "0:02:09"]
[BlackClock "0:01:25"]

1. e4 {[%clk 0:03:00]}  c6 {[%clk 0:03:00]} 2. Nc3 {[%clk 0:03:00]}  d5 {[%clk 0:03:00]} 3. Qf3 {[%clk 0:03:00]}  d4 {[%clk 0:02:51]} 4. Bc4 {[%clk 0:02:59]}  Nh6 {[%clk 0:02:45]} 5. Nce2 {[%clk 0:02:56]}  Nd7 {[%clk 0:02:28]} 6. Qg3 {[%clk 0:02:53]}  b5 {[%clk 0:02:18]} 7. Bb3 {[%clk 0:02:52]}  Nc5 {[%clk 0:02:18]} 8. d3 {[%clk 0:02:50]}  Nxb3 {[%clk 0:02:19]} 9. axb3 {[%clk 0:02:51]}  Be6 {[%clk 0:01:57]} 10. Bxh6 {[%clk 0:02:46]}  gxh6 {[%clk 0:01:58]} 11. Qe5 {[%clk 0:02:46]}  Rg8 {[%clk 0:01:56]} 12. Qxd4 {[%clk 0:02:40]}  Rxg2 {[%clk 0:01:51]} 13. Qxd8+ {[%clk 0:02:32]}  Kxd8 {[%clk 0:01:52]} 14. Ng3 {[%clk 0:02:33]}  Bg7 {[%clk 0:01:37]} 15. Kf1 {[%clk 0:02:13]}  Rxg1+ {[%clk 0:01:37]} 16. Rxg1 {[%clk 0:02:12]}  Bxb2 {[%clk 0:01:38]} 17. Rb1 {[%clk 0:02:10]}  Bc3 {[%clk 0:01:34]} 18. Ne2 {[%clk 0:02:09]}  Be5 {[%clk 0:01:25]} 19. Rg8+ {[%clk 0:02:09]} 1-0


[Site "https://www.chess.com"]

[Event "Titled Tuesday Blitz March 07 Late 2023"]
[White "Davidson, Kevin"]
[Black "Filgueira, Hernan"]
[WhiteFideId "2056810"]
[BlackFideId "101770"]
[WhiteElo "2151"]
[BlackElo "2363"]
[Result "0-1"]
[Round "03"]
[TimeControl "180+2"]
[Date "2023.03.07"]
[WhiteClock "0:00:01"]
[BlackClock "0:01:19"]

1. e4 {[%clk 0:03:00]}  d6 {[%clk 0:02:59]} 2. d4 {[%clk 0:03:00]}  Nf6 {[%clk 0:03:00]} 3. Nc3 {[%clk 0:03:01]}  g6 {[%clk 0:02:59]} 4. f4 {[%clk 0:03:01]}  Bg7 {[%clk 0:02:58]} 5. Nf3 {[%clk 0:03:02]}  c5 {[%clk 0:02:58]} 6. Bb5+ {[%clk 0:03:01]}  Nfd7 {[%clk 0:02:57]} 7. d5 {[%clk 0:02:54]}  a6 {[%clk 0:02:54]} 8. Bxd7+ {[%clk 0:02:54]}  Nxd7 {[%clk 0:02:54]} 9. a4 {[%clk 0:02:53]}  Rb8 {[%clk 0:02:49]} 10. a5 {[%clk 0:02:52]}  Nf6 {[%clk 0:02:39]} 11. e5 {[%clk 0:02:42]}  Nh5 {[%clk 0:02:37]} 12. O-O {[%clk 0:02:30]}  O-O {[%clk 0:02:36]} 13. Re1 {[%clk 0:02:26]}  b5 {[%clk 0:02:35]} 14. axb6 {[%clk 0:02:26]}  Rxb6 {[%clk 0:02:34]} 15. Ne4 {[%clk 0:01:46]}  Bf5 {[%clk 0:02:29]} 16. c4 {[%clk 0:01:26]}  Qb8 {[%clk 0:02:17]} 17. Qe2 {[%clk 0:01:03]}  Bg4 {[%clk 0:02:08]} 18. exd6 {[%clk 0:00:44]}  exd6 {[%clk 0:02:08]} 19. h3 {[%clk 0:00:44]}  Bd7 {[%clk 0:02:00]} 20. g4 {[%clk 0:00:38]}  Nf6 {[%clk 0:01:59]} 21. Nc3 {[%clk 0:00:24]}  h5 {[%clk 0:01:52]} 22. g5 {[%clk 0:00:14]}  Nh7 {[%clk 0:01:49]} 23. Qg2 {[%clk 0:00:10]}  Qc8 {[%clk 0:01:27]} 24. Kh2 {[%clk 0:00:09]}  Rb4 {[%clk 0:01:26]} 25. Qf1 {[%clk 0:00:04]}  Re8 {[%clk 0:01:22]} 26. Rxe8+ {[%clk 0:00:02]}  Bxe8 {[%clk 0:01:22]} 27. Ra2 {[%clk 0:00:02]}  Bd7 {[%clk 0:01:22]} 28. Be3 {[%clk 0:00:01]}  Qb7 {[%clk 0:01:20]} 29. Ra1 {[%clk 0:00:01]}  Rxb2+ {[%clk 0:01:19]} 30. Kh1 {[%clk 0:00:01]}  Bxc3 {[%clk 0:01:19]} 0-1


[Site "https://www.chess.com"]

[Event "Titled Tuesday Blitz March 07 Late 2023"]
[White "Chan, Kim Yew"]
[Black "Paszewski, Mateusz"]
[WhiteFideId "5717981"]
[BlackFideId "1141058"]
[WhiteElo "2206"]
[BlackElo "2223"]
[Result "1-0"]
[Round "03"]
[TimeControl "180+2"]
[Date "2023.03.07"]
[WhiteClock "0:00:14"]
[BlackClock "0:00:18"]

1. e4 {[%clk 0:03:00]}  c5 {[%clk 0:02:51]} 2. Nf3 {[%clk 0:03:00]}  Nc6 {[%clk 0:02:51]} 3. Bb5 {[%clk 0:02:59]}  g6 {[%clk 0:02:50]} 4. Bxc6 {[%clk 0:02:58]}  bxc6 {[%clk 0:02:50]} 5. O-O {[%clk 0:02:48]}  Bg7 {[%clk 0:02:50]} 6. Re1 {[%clk 0:02:49]}  Qc7 {[%clk 0:02:47]} 7. c3 {[%clk 0:02:34]}  d6 {[%clk 0:02:42]} 8. h3 {[%clk 0:02:31]}  Nf6 {[%clk 0:02:41]} 9. d4 {[%clk 0:02:31]}  cxd4 {[%clk 0:02:42]} 10. cxd4 {[%clk 0:02:31]}  O-O {[%clk 0:02:42]} 11. Nc3 {[%clk 0:02:32]}  c5 {[%clk 0:02:40]} 12. e5 {[%clk 0:02:22]}  dxe5 {[%clk 0:02:39]} 13. dxe5 {[%clk 0:02:22]}  Rd8 {[%clk 0:02:39]} 14. Qe2 {[%clk 0:02:00]}  Nd5 {[%clk 0:02:32]} 15. Ne4 {[%clk 0:01:46]}  Nb4 {[%clk 0:02:14]} 16. Qc4 {[%clk 0:00:59]}  Nd3 {[%clk 0:01:54]} 17. Rd1 {[%clk 0:00:59]}  Be6 {[%clk 0:01:51]} 18. Qc3 {[%clk 0:00:56]}  Nxe5 {[%clk 0:01:51]} 19. Bf4 {[%clk 0:00:46]}  Nxf3+ {[%clk 0:01:39]} 20. Qxf3 {[%clk 0:00:47]}  Qb6 {[%clk 0:01:39]} 21. Ng5 {[%clk 0:00:43]}  Qxb2 {[%clk 0:01:16]} 22. Nxe6 {[%clk 0:00:39]}  fxe6 {[%clk 0:01:16]} 23. Qc6 {[%clk 0:00:31]}  Qf6 {[%clk 0:01:09]} 24. Be3 {[%clk 0:00:25]}  Qf5 {[%clk 0:01:05]} 25. Rac1 {[%clk 0:00:22]}  Bd4 {[%clk 0:00:56]} 26. Bxd4 {[%clk 0:00:13]}  cxd4 {[%clk 0:00:56]} 27. Rc5 {[%clk 0:00:13]}  e5 {[%clk 0:00:52]} 28. Qb5 {[%clk 0:00:12]}  Rf8 {[%clk 0:00:47]} 29. Rd2 {[%clk 0:00:11]}  Rab8 {[%clk 0:00:46]} 30. Qe2 {[%clk 0:00:11]}  d3 {[%clk 0:00:37]} 31. Qe3 {[%clk 0:00:10]}  Rfd8 {[%clk 0:00:20]} 32. Rxe5 {[%clk 0:00:10]}  Qf6 {[%clk 0:00:20]} 33. Rxe7 {[%clk 0:00:10]}  Rb1+ {[%clk 0:00:19]} 34. Kh2 {[%clk 0:00:10]}  Rbb8 {[%clk 0:00:17]} 35. Re6 {[%clk 0:00:09]}  Qf5 {[%clk 0:00:16]} 36. Re5 {[%clk 0:00:09]}  Qf7 {[%clk 0:00:16]} 37. Rxd3 {[%clk 0:00:09]}  Rxd3 {[%clk 0:00:15]} 38. Qxd3 {[%clk 0:00:10]}  Qc7 {[%clk 0:00:15]} 39. Qg3 {[%clk 0:00:10]}  Rf8 {[%clk 0:00:15]} 40. Re3 {[%clk 0:00:08]}  Qf7 {[%clk 0:00:16]} 41. Rf3 {[%clk 0:00:08]}  Qe6 {[%clk 0:00:14]} 42. Rxf8+ {[%clk 0:00:08]}  Kxf8 {[%clk 0:00:15]} 43. Qb8+ {[%clk 0:00:09]}  Kg7 {[%clk 0:00:16]} 44. Qxa7+ {[%clk 0:00:09]}  Kh6 {[%clk 0:00:16]} 45. Qe3+ {[%clk 0:00:09]}  Qxe3 {[%clk 0:00:16]} 46. fxe3 {[%clk 0:00:10]}  Kg5 {[%clk 0:00:17]} 47. Kg3 {[%clk 0:00:11]}  Kf5 {[%clk 0:00:18]} 48. Kf3 {[%clk 0:00:12]}  Ke5 {[%clk 0:00:18]} 49. e4 {[%clk 0:00:12]}  h5 {[%clk 0:00:18]} 50. Ke3 {[%clk 0:00:13]}  g5 {[%clk 0:00:18]} 51. a4 {[%clk 0:00:14]} 1-0


[Site "https://www.chess.com"]

[Event "Titled Tuesday Blitz March 07 Late 2023"]
[White "Gubajdullin, Alexei"]
[Black "Silva, Caio Henrique Angelico"]
[WhiteFideId "4141202"]
[BlackFideId "22777210"]
[WhiteElo "2267"]
[BlackElo "2096"]
[Result "1/2-1/2"]
[Round "03"]
[TimeControl "180+2"]
[Date "2023.03.07"]
[WhiteClock "0:00:11"]
[BlackClock "0:00:08"]

1. d4 {[%clk 0:03:00]}  Nf6 {[%clk 0:02:58]} 2. Nf3 {[%clk 0:02:59]}  g6 {[%clk 0:02:57]} 3. Bf4 {[%clk 0:02:57]}  Bg7 {[%clk 0:02:56]} 4. e3 {[%clk 0:02:57]}  O-O {[%clk 0:02:57]} 5. Be2 {[%clk 0:02:57]}  b6 {[%clk 0:02:54]} 6. O-O {[%clk 0:02:57]}  Bb7 {[%clk 0:02:55]} 7. h3 {[%clk 0:02:57]}  d6 {[%clk 0:02:54]} 8. a4 {[%clk 0:02:56]}  a6 {[%clk 0:02:40]} 9. Bh2 {[%clk 0:02:56]}  c5 {[%clk 0:02:38]} 10. c3 {[%clk 0:02:44]}  Nbd7 {[%clk 0:02:38]} 11. Qb3 {[%clk 0:02:44]}  Qc7 {[%clk 0:02:22]} 12. Rd1 {[%clk 0:02:44]}  Rfd8 {[%clk 0:02:19]} 13. d5 {[%clk 0:02:43]}  Ne4 {[%clk 0:02:06]} 14. c4 {[%clk 0:02:41]}  Ne5 {[%clk 0:01:57]} 15. Nfd2 {[%clk 0:02:36]}  Nxd2 {[%clk 0:01:56]} 16. Rxd2 {[%clk 0:02:36]}  Rab8 {[%clk 0:01:46]} 17. Nc3 {[%clk 0:02:35]}  Bc8 {[%clk 0:01:43]} 18. Qc2 {[%clk 0:02:33]}  f5 {[%clk 0:01:31]} 19. Re1 {[%clk 0:02:30]}  Bd7 {[%clk 0:01:30]} 20. Rdd1 {[%clk 0:02:30]}  Re8 {[%clk 0:01:28]} 21. Bf1 {[%clk 0:02:30]}  Kh8 {[%clk 0:01:13]} 22. b3 {[%clk 0:02:29]}  Rf8 {[%clk 0:01:05]} 23. f4 {[%clk 0:02:22]}  Nf7 {[%clk 0:01:04]} 24. e4 {[%clk 0:02:22]}  fxe4 {[%clk 0:00:59]} 25. Nxe4 {[%clk 0:02:22]}  Rbe8 {[%clk 0:00:55]} 26. Qd2 {[%clk 0:02:08]}  Nh6 {[%clk 0:00:47]} 27. Ng5 {[%clk 0:02:04]}  Nf5 {[%clk 0:00:44]} 28. Ne6 {[%clk 0:02:02]}  Bxe6 {[%clk 0:00:44]} 29. Rxe6 {[%clk 0:02:01]}  Nd4 {[%clk 0:00:44]} 30. Re3 {[%clk 0:02:01]}  Nf5 {[%clk 0:00:43]} 31. Rd3 {[%clk 0:01:58]}  e6 {[%clk 0:00:42]} 32. dxe6 {[%clk 0:01:57]}  Rxe6 {[%clk 0:00:42]} 33. Re1 {[%clk 0:01:49]}  Rfe8 {[%clk 0:00:39]} 34. Rxe6 {[%clk 0:01:47]}  Rxe6 {[%clk 0:00:40]} 35. Kh1 {[%clk 0:01:34]}  Qe7 {[%clk 0:00:39]} 36. Qc1 {[%clk 0:01:27]}  Re1 {[%clk 0:00:35]} 37. Rd1 {[%clk 0:01:27]}  Rxd1 {[%clk 0:00:30]} 38. Qxd1 {[%clk 0:01:27]}  Nd4 {[%clk 0:00:29]} 39. Bg1 {[%clk 0:01:24]}  Qe4 {[%clk 0:00:27]} 40. Bd3 {[%clk 0:01:23]}  Qxf4 {[%clk 0:00:24]} 41. Bh2 {[%clk 0:01:22]}  Qe3 {[%clk 0:00:21]} 42. Bxd6 {[%clk 0:01:21]}  Be5 {[%clk 0:00:22]} 43. Bxe5+ {[%clk 0:01:05]}  Qxe5 {[%clk 0:00:23]} 44. Qd2 {[%clk 0:00:49]}  Kg7 {[%clk 0:00:18]} 45. b4 {[%clk 0:00:46]}  Nc6 {[%clk 0:00:13]} 46. bxc5 {[%clk 0:00:42]}  bxc5 {[%clk 0:00:13]} 47. Qf2 {[%clk 0:00:36]}  Qd4 {[%clk 0:00:12]} 48. Qg3 {[%clk 0:00:35]}  Qe5 {[%clk 0:00:11]} 49. Qf3 {[%clk 0:00:34]}  Qa1+ {[%clk 0:00:11]} 50. Kh2 {[%clk 0:00:34]}  Qe5+ {[%clk 0:00:11]} 51. Kh1 {[%clk 0:00:32]}  Qa1+ {[%clk 0:00:11]} 52. Bf1 {[%clk 0:00:32]}  Nd4 {[%clk 0:00:09]} 53. Qf4 {[%clk 0:00:32]}  Qxa4 {[%clk 0:00:07]} 54. Qe5+ {[%clk 0:00:30]}  Kg8 {[%clk 0:00:06]} 55. Qxc5 {[%clk 0:00:30]}  Qd1 {[%clk 0:00:07]} 56. Kg1 {[%clk 0:00:23]}  Qd2 {[%clk 0:00:03]} 57. Qc8+ {[%clk 0:00:20]}  Kg7 {[%clk 0:00:03]} 58. Qxa6 {[%clk 0:00:17]}  Qe3+ {[%clk 0:00:03]} 59. Kh1 {[%clk 0:00:16]}  Qf2 {[%clk 0:00:04]} 60. Qa1 {[%clk 0:00:15]}  Kf7 {[%clk 0:00:02]} 61. c5 {[%clk 0:00:15]}  Ke7 {[%clk 0:00:02]} 62. Qc1 {[%clk 0:00:11]}  Kd7 {[%clk 0:00:02]} 63. c6+ {[%clk 0:00:11]}  Nxc6 {[%clk 0:00:02]} 64. Bb5 {[%clk 0:00:11]}  Qb6 {[%clk 0:00:02]} 65. Qc4 {[%clk 0:00:10]}  Kc7 {[%clk 0:00:03]} 66. Qf7+ {[%clk 0:00:09]}  Kb8 {[%clk 0:00:03]} 67. Bxc6 {[%clk 0:00:09]}  Qxc6 {[%clk 0:00:04]} 68. Qxh7 {[%clk 0:00:10]}  Qc1+ {[%clk 0:00:04]} 69. Kh2 {[%clk 0:00:10]}  Qf4+ {[%clk 0:00:05]} 70. Kg1 {[%clk 0:00:10]}  Qc1+ {[%clk 0:00:04]} 71. Kf2 {[%clk 0:00:10]}  Qd2+ {[%clk 0:00:05]} 72. Kf3 {[%clk 0:00:10]}  Qd3+ {[%clk 0:00:05]} 73. Kg4 {[%clk 0:00:08]}  Qf5+ {[%clk 0:00:05]} 74. Kg3 {[%clk 0:00:08]}  Qd3+ {[%clk 0:00:04]} 75. Kg4 {[%clk 0:00:07]}  Qf5+ {[%clk 0:00:04]} 76. Kg3 {[%clk 0:00:07]}  Qe5+ {[%clk 0:00:05]} 77. Kf3 {[%clk 0:00:07]}  Qf5+ {[%clk 0:00:05]} 78. Ke3 {[%clk 0:00:08]}  Qe5+ {[%clk 0:00:05]} 79. Kf3 {[%clk 0:00:08]}  Qf5+ {[%clk 0:00:06]} 80. Ke2 {[%clk 0:00:09]}  Qe4+ {[%clk 0:00:06]} 81. Kf2 {[%clk 0:00:10]}  Qf4+ {[%clk 0:00:06]} 82. Kg1 {[%clk 0:00:10]}  Qe3+ {[%clk 0:00:06]} 83. Kh2 {[%clk 0:00:10]}  Qe5+ {[%clk 0:00:06]} 84. Kg1 {[%clk 0:00:10]}  Qe1+ {[%clk 0:00:07]} 85. Kh2 {[%clk 0:00:11]}  Qe5+ {[%clk 0:00:07]} 86. Kh1 {[%clk 0:00:11]}  Qe1+ {[%clk 0:00:07]} 87. Kh2 {[%clk 0:00:11]}  Qe5+ {[%clk 0:00:08]} 1/2-1/2


[Site "https://www.chess.com"]

[Event "Titled Tuesday Blitz March 07 Late 2023"]
[White "Kaganskiy, Gleb"]
[Black "Arngrimsson, Dagur"]
[WhiteFideId "4132025"]
[BlackFideId "2301288"]
[WhiteElo "2165"]
[BlackElo "2285"]
[Result "1-0"]
[Round "03"]
[TimeControl "180+2"]
[Date "2023.03.07"]
[WhiteClock "0:00:11"]
[BlackClock "0:00:33"]

1. e4 {[%clk 0:02:56]}  c5 {[%clk 0:02:35]} 2. Nf3 {[%clk 0:02:56]}  d6 {[%clk 0:02:32]} 3. Bb5+ {[%clk 0:02:48]}  Bd7 {[%clk 0:02:32]} 4. Bxd7+ {[%clk 0:02:48]}  Qxd7 {[%clk 0:02:32]} 5. c4 {[%clk 0:02:48]}  Nc6 {[%clk 0:02:32]} 6. d4 {[%clk 0:02:46]}  cxd4 {[%clk 0:02:32]} 7. Nxd4 {[%clk 0:02:47]}  Nf6 {[%clk 0:02:33]} 8. Nc3 {[%clk 0:02:46]}  g6 {[%clk 0:02:34]} 9. O-O {[%clk 0:02:44]}  Bg7 {[%clk 0:02:34]} 10. Nc2 {[%clk 0:02:16]}  Rc8 {[%clk 0:02:33]} 11. f3 {[%clk 0:02:09]}  Na5 {[%clk 0:02:29]} 12. b3 {[%clk 0:01:58]}  a6 {[%clk 0:02:29]} 13. Bb2 {[%clk 0:01:56]}  b5 {[%clk 0:02:29]} 14. Nd5 {[%clk 0:01:41]}  O-O {[%clk 0:02:20]} 15. cxb5 {[%clk 0:01:32]}  Nxd5 {[%clk 0:02:07]} 16. Bxg7 {[%clk 0:01:31]}  Kxg7 {[%clk 0:02:07]} 17. exd5 {[%clk 0:01:26]}  Qxb5 {[%clk 0:02:04]} 18. Rc1 {[%clk 0:01:12]}  Rc5 {[%clk 0:02:02]} 19. Qd4+ {[%clk 0:00:38]}  Kg8 {[%clk 0:02:02]} 20. Na3 {[%clk 0:00:39]}  Qb6 {[%clk 0:01:50]} 21. b4 {[%clk 0:00:33]}  Rfc8 {[%clk 0:01:17]} 22. bxc5 {[%clk 0:00:32]}  dxc5 {[%clk 0:01:18]} 23. Qc3 {[%clk 0:00:30]}  c4+ {[%clk 0:01:10]} 24. Kh1 {[%clk 0:00:30]}  Rd8 {[%clk 0:01:11]} 25. Nxc4 {[%clk 0:00:29]}  Nxc4 {[%clk 0:01:09]} 26. Qxc4 {[%clk 0:00:29]}  h5 {[%clk 0:01:09]} 27. Rfd1 {[%clk 0:00:29]}  Qe3 {[%clk 0:01:06]} 28. Qc7 {[%clk 0:00:25]}  Rd6 {[%clk 0:01:04]} 29. Re1 {[%clk 0:00:24]}  Qd2 {[%clk 0:01:00]} 30. Qxe7 {[%clk 0:00:23]}  Rxd5 {[%clk 0:00:59]} 31. h3 {[%clk 0:00:22]}  Kg7 {[%clk 0:00:57]} 32. Rcd1 {[%clk 0:00:22]}  Qxd1 {[%clk 0:00:57]} 33. Rxd1 {[%clk 0:00:23]}  Rxd1+ {[%clk 0:00:57]} 34. Kh2 {[%clk 0:00:23]}  Rd5 {[%clk 0:00:57]} 35. Qb7 {[%clk 0:00:22]}  Ra5 {[%clk 0:00:56]} 36. a3 {[%clk 0:00:20]}  Kg8 {[%clk 0:00:52]} 37. Qb8+ {[%clk 0:00:20]}  Kg7 {[%clk 0:00:50]} 38. Qb4 {[%clk 0:00:20]}  Rb5 {[%clk 0:00:49]} 39. Qd4+ {[%clk 0:00:20]}  Kg8 {[%clk 0:00:48]} 40. a4 {[%clk 0:00:21]}  Rf5 {[%clk 0:00:47]} 41. g4 {[%clk 0:00:19]}  Rxf3 {[%clk 0:00:46]} 42. Qd8+ {[%clk 0:00:17]}  Kg7 {[%clk 0:00:46]} 43. gxh5 {[%clk 0:00:16]}  Rf2+ {[%clk 0:00:42]} 44. Kg3 {[%clk 0:00:15]}  Ra2 {[%clk 0:00:41]} 45. Qd4+ {[%clk 0:00:14]}  Kh6 {[%clk 0:00:39]} 46. hxg6 {[%clk 0:00:14]}  Ra3+ {[%clk 0:00:39]} 47. Kf4 {[%clk 0:00:13]}  Kxg6 {[%clk 0:00:38]} 48. h4 {[%clk 0:00:13]}  f6 {[%clk 0:00:38]} 49. Qe4+ {[%clk 0:00:12]}  Kh6 {[%clk 0:00:38]} 50. Kf5 {[%clk 0:00:11]}  Rc3 {[%clk 0:00:35]} 51. Kxf6 {[%clk 0:00:11]}  Rc8 {[%clk 0:00:33]} 52. Qf4+ {[%clk 0:00:11]}  Kh7 {[%clk 0:00:33]} 53. Qf5+ {[%clk 0:00:12]}  Kh6 {[%clk 0:00:33]} 54. Qxc8 {[%clk 0:00:12]}  a5 {[%clk 0:00:33]} 55. Qg8 {[%clk 0:00:11]}  Kh5 {[%clk 0:00:33]} 56. Qg5# {[%clk 0:00:11]} 1-0


[Site "https://www.chess.com"]

[Event "Titled Tuesday Blitz March 07 Late 2023"]
[White "ArtemDyachuk"]
[Black "Klose, Eli"]
[BlackFideId "16242955"]
[WhiteElo "2375"]
[BlackElo "2552"]
[Result "1-0"]
[Round "03"]
[TimeControl "180+2"]
[Date "2023.03.07"]
[WhiteClock "0:00:05"]
[BlackClock "0:00:11"]

1. e4 {[%clk 0:03:00]}  e6 {[%clk 0:03:00]} 2. Nf3 {[%clk 0:02:59]}  d5 {[%clk 0:02:59]} 3. Nc3 {[%clk 0:03:00]}  d4 {[%clk 0:02:58]} 4. Ne2 {[%clk 0:03:00]}  c5 {[%clk 0:02:59]} 5. d3 {[%clk 0:03:00]}  Nc6 {[%clk 0:02:59]} 6. g3 {[%clk 0:03:00]}  g6 {[%clk 0:02:59]} 7. Bg2 {[%clk 0:03:01]}  Bg7 {[%clk 0:03:00]} 8. O-O {[%clk 0:03:02]}  Nge7 {[%clk 0:03:00]} 9. a4 {[%clk 0:03:01]}  O-O {[%clk 0:02:59]} 10. Nd2 {[%clk 0:03:02]}  f5 {[%clk 0:02:57]} 11. Nc4 {[%clk 0:03:00]}  Rb8 {[%clk 0:02:56]} 12. f4 {[%clk 0:02:57]}  b6 {[%clk 0:02:54]} 13. e5 {[%clk 0:02:57]}  Nd5 {[%clk 0:02:41]} 14. c3 {[%clk 0:02:56]}  dxc3 {[%clk 0:02:35]} 15. Nxc3 {[%clk 0:02:57]}  Ncb4 {[%clk 0:02:27]} 16. a5 {[%clk 0:02:48]}  Bb7 {[%clk 0:02:19]} 17. axb6 {[%clk 0:02:47]}  axb6 {[%clk 0:02:20]} 18. Nd6 {[%clk 0:02:48]}  Bc6 {[%clk 0:02:19]} 19. Ra7 {[%clk 0:02:45]}  Ra8 {[%clk 0:02:18]} 20. Rxa8 {[%clk 0:02:36]}  Qxa8 {[%clk 0:02:18]} 21. Nxd5 {[%clk 0:02:36]}  Bxd5 {[%clk 0:02:12]} 22. Bxd5 {[%clk 0:02:35]}  Qxd5 {[%clk 0:02:13]} 23. Qa4 {[%clk 0:02:35]}  Qd4+ {[%clk 0:02:00]} 24. Kg2 {[%clk 0:02:29]}  Qxd3 {[%clk 0:01:57]} 25. Qd7 {[%clk 0:02:22]}  Qd5+ {[%clk 0:01:50]} 26. Kh3 {[%clk 0:02:22]}  h6 {[%clk 0:01:37]} 27. Rf2 {[%clk 0:02:18]}  Nd3 {[%clk 0:00:50]} 28. Rd2 {[%clk 0:02:16]}  g5 {[%clk 0:00:50]} 29. Qe7 {[%clk 0:02:04]}  gxf4 {[%clk 0:00:41]} 30. Rxd3 {[%clk 0:01:54]}  Qxd3 {[%clk 0:00:36]} 31. Qxe6+ {[%clk 0:01:54]}  Kh7 {[%clk 0:00:36]} 32. Bxf4 {[%clk 0:01:55]}  Qf1+ {[%clk 0:00:31]} 33. Kh4 {[%clk 0:01:55]}  Qd3 {[%clk 0:00:20]} 34. Ne8 {[%clk 0:01:48]}  Qf3 {[%clk 0:00:16]} 35. h3 {[%clk 0:01:44]}  Qb7 {[%clk 0:00:10]} 36. Kh5 {[%clk 0:01:12]}  Qf7+ {[%clk 0:00:08]} 37. Qxf7 {[%clk 0:01:12]}  Rxf7 {[%clk 0:00:09]} 38. Nd6 {[%clk 0:01:12]}  Rf8 {[%clk 0:00:09]} 39. Nc4 {[%clk 0:01:05]}  b5 {[%clk 0:00:08]} 40. Nd6 {[%clk 0:00:53]}  c4 {[%clk 0:00:08]} 41. e6 {[%clk 0:00:25]}  Bf6 {[%clk 0:00:08]} 42. Nxb5 {[%clk 0:00:17]}  Re8 {[%clk 0:00:04]} 43. Nc7 {[%clk 0:00:16]}  Rc8 {[%clk 0:00:02]} 44. Nb5 {[%clk 0:00:08]}  Bd8 {[%clk 0:00:03]} 45. g4 {[%clk 0:00:05]}  fxg4 {[%clk 0:00:02]} 46. Kxg4 {[%clk 0:00:06]}  Rc5 {[%clk 0:00:02]} 47. Nd6 {[%clk 0:00:05]}  Rc6 {[%clk 0:00:03]} 48. Nf7 {[%clk 0:00:03]}  Kg6 {[%clk 0:00:03]} 49. Nxd8 {[%clk 0:00:03]}  Ra6 {[%clk 0:00:04]} 50. e7 {[%clk 0:00:03]}  Ra4 {[%clk 0:00:03]} 51. e8=Q+ {[%clk 0:00:02]}  Kg7 {[%clk 0:00:04]} 52. Qxa4 {[%clk 0:00:03]}  c3 {[%clk 0:00:03]} 53. Qd4+ {[%clk 0:00:04]}  Kh7 {[%clk 0:00:03]} 54. Qxc3 {[%clk 0:00:05]}  h5+ {[%clk 0:00:04]} 55. Kh4 {[%clk 0:00:04]}  Kg8 {[%clk 0:00:05]} 56. Ne6 {[%clk 0:00:04]}  Kf7 {[%clk 0:00:04]} 57. Qe5 {[%clk 0:00:04]}  Kg6 {[%clk 0:00:05]} 58. b4 {[%clk 0:00:05]}  Kf7 {[%clk 0:00:06]} 59. b5 {[%clk 0:00:06]}  Ke8 {[%clk 0:00:07]} 60. b6 {[%clk 0:00:06]}  Ke7 {[%clk 0:00:08]} 61. Qd5 {[%clk 0:00:05]}  Kf7 {[%clk 0:00:08]} 62. b7 {[%clk 0:00:06]}  Kg6 {[%clk 0:00:09]} 63. b8=Q {[%clk 0:00:06]}  Kf6 {[%clk 0:00:10]} 64. Qf8+ {[%clk 0:00:05]}  Kg6 {[%clk 0:00:10]} 65. Qg5+ {[%clk 0:00:06]}  Kh7 {[%clk 0:00:11]} 66. Qgh6# {[%clk 0:00:05]} 1-0


[Site "https://www.chess.com"]

[Event "Titled Tuesday Blitz March 07 Late 2023"]
[White "Marra, Eduardo da Costa"]
[Black "Yano, William Jorge Froes"]
[WhiteFideId "2106990"]
[BlackFideId "2112949"]
[WhiteElo "2252"]
[BlackElo "2122"]
[Result "1-0"]
[Round "03"]
[TimeControl "180+2"]
[Date "2023.03.07"]
[WhiteClock "0:00:27"]
[BlackClock "0:00:07"]

1. c4 {[%clk 0:03:00]}  Nf6 {[%clk 0:03:00]} 2. g3 {[%clk 0:03:01]}  g6 {[%clk 0:03:00]} 3. Bg2 {[%clk 0:03:02]}  Bg7 {[%clk 0:03:00]} 4. d3 {[%clk 0:03:03]}  O-O {[%clk 0:03:01]} 5. Nc3 {[%clk 0:03:03]}  c5 {[%clk 0:03:01]} 6. Nf3 {[%clk 0:03:04]}  Nc6 {[%clk 0:03:02]} 7. O-O {[%clk 0:03:05]}  b6 {[%clk 0:03:02]} 8. a3 {[%clk 0:03:05]}  Bb7 {[%clk 0:03:02]} 9. Rb1 {[%clk 0:03:06]}  d5 {[%clk 0:02:59]} 10. cxd5 {[%clk 0:03:02]}  Nxd5 {[%clk 0:02:59]} 11. Nxd5 {[%clk 0:02:57]}  Qxd5 {[%clk 0:02:59]} 12. Be3 {[%clk 0:02:57]}  Nd4 {[%clk 0:02:51]} 13. Ne1 {[%clk 0:02:53]}  Qd7 {[%clk 0:02:51]} 14. b4 {[%clk 0:02:49]}  Bxg2 {[%clk 0:02:45]} 15. Nxg2 {[%clk 0:02:48]}  Rac8 {[%clk 0:02:22]} 16. bxc5 {[%clk 0:02:47]}  Rxc5 {[%clk 0:02:22]} 17. Bd2 {[%clk 0:02:37]}  Rfc8 {[%clk 0:02:20]} 18. Ne3 {[%clk 0:02:37]}  Qh3 {[%clk 0:02:15]} 19. f3 {[%clk 0:02:24]}  Rh5 {[%clk 0:02:08]} 20. Rf2 {[%clk 0:02:24]}  Bh6 {[%clk 0:01:45]} 21. Rc1 {[%clk 0:02:14]}  Rxc1 {[%clk 0:01:40]} 22. Qxc1 {[%clk 0:02:14]}  Rc5 {[%clk 0:01:40]} 23. Qb2 {[%clk 0:02:10]}  Rb5 {[%clk 0:01:27]} 24. Qa2 {[%clk 0:01:34]}  e5 {[%clk 0:01:18]} 25. a4 {[%clk 0:01:25]}  Rb3 {[%clk 0:01:16]} 26. Nf1 {[%clk 0:01:00]}  Bxd2 {[%clk 0:00:36]} 27. Nxd2 {[%clk 0:00:59]}  Rb4 {[%clk 0:00:37]} 28. a5 {[%clk 0:00:50]}  bxa5 {[%clk 0:00:35]} 29. f4 {[%clk 0:00:40]}  Qg4 {[%clk 0:00:28]} 30. fxe5 {[%clk 0:00:37]}  Ne6 {[%clk 0:00:16]} 31. Nc4 {[%clk 0:00:37]}  a4 {[%clk 0:00:13]} 32. Nd6 {[%clk 0:00:37]}  Qd4 {[%clk 0:00:11]} 33. Nxf7 {[%clk 0:00:29]}  Rb6 {[%clk 0:00:07]} 34. Ng5 {[%clk 0:00:27]} 1-0


[Site "https://www.chess.com"]